bitfinex/quotes_BTCUSD_20251224
["timestamp","ask_amount","ask_price","bid_price","bid_amount"]
[1766576346158,0.01146302,87237.0,87233.0,3.2e-05]
[1766576346728,0.06877747,87238.0,87233.0,3.2e-05]
[1766576347129,0.01146289,87238.0,87233.0,3.2e-05]
[1766576347316,0.06877736,87238.0,87233.0,3.2e-05]
[1766576349026,0.01146315,87236.0,87233.0,3.2e-05]
[1766576349231,0.06877815,87237.0,87233.0,3.2e-05]
[1766576351098,0.02294276,87239.0,87233.0,3.2e-05]
[1766576351099,0.01148,87239.0,87233.0,3.2e-05]
[1766576351299,0.01148,87239.0,87237.0,0.000549]
[1766576351480,0.01146302,87237.0,87233.0,3.2e-05]
[1766576352073,0.06877736,87238.0,87233.0,3.2e-05]
[1766576352279,0.01146302,87237.0,87233.0,3.2e-05]
[1766576353375,0.0573171,87234.0,87233.0,3.2e-05]
[1766576353578,0.0687971,87234.0,87233.0,3.2e-05]
[1766576353776,0.05732038,87229.0,87228.0,0.03440885]
[1766576353985,0.01146434,87227.0,87219.0,0.01146539]
[1766576354384,0.0114642,87228.0,87219.0,0.01146539]
[1766576354611,0.06878532,87228.0,87219.0,0.01146539]
[1766576354842,0.08026445,87229.0,87220.0,0.01146526]
[1766576355205,0.0114642,87228.0,87220.0,0.06879154]
[1766576355609,0.0114642,87228.0,87220.0,0.01146526]
[1766576355801,0.08026445,87229.0,87220.0,0.01146526]
[1766576356218,0.01148,87229.0,87221.0,0.01146512]
[1766576356864,0.08026446,87229.0,87220.0,0.06879043]
[1766576357881,0.02294407,87229.0,87221.0,0.01146512]
[1766576358086,0.02294407,87229.0,87220.0,0.06879043]
[1766576358710,0.0802646,87229.0,87220.0,0.01146526]
[1766576359225,0.02294407,87229.0,87221.0,0.01146512]
[1766576359410,0.08026449,87229.0,87221.0,0.01146512]
[1766576359932,0.0114642,87228.0,87220.0,0.01146526]
[1766576360331,0.02294407,87229.0,87221.0,0.01146512]
[1766576360486,0.0114642,87228.0,87220.0,0.01146526]
[1766576361718,0.06878533,87228.0,87219.0,0.01146539]
[1766576361902,0.06878533,87228.0,87219.0,0.06879219]
[1766576362951,0.0114642,87228.0,87220.0,0.01146526]
[1766576363595,0.08026505,87229.0,87220.0,0.01146526]
[1766576363867,0.0114642,87228.0,87219.0,0.06879219]
[1766576364014,0.0114642,87228.0,87220.0,0.01146526]
[1766576364614,0.0114642,87228.0,87219.0,0.06879219]
[1766576365106,0.01146434,87227.0,87219.0,0.06879219]
[1766576365308,0.06878538,87228.0,87220.0,0.01146526]
[1766576365511,0.01146434,87227.0,87219.0,0.06879219]
[1766576365667,0.01146447,87226.0,87217.0,0.05732763]
[1766576365833,0.0114646,87225.0,87217.0,0.01146565]
[1766576366032,0.01148,87224.0,87215.0,0.05732922]
[1766576366242,0.01148,87224.0,87216.0,0.01146578]
[1766576366448,0.01148,87224.0,87217.0,0.01146565]
[1766576366644,0.01148,87224.0,87218.0,0.01146552]
[1766576367300,0.01148,87224.0,87218.0,4.902e-05]
[1766576368109,0.01148,87224.0,87218.0,0.01151454]
[1766576368314,0.01148,87224.0,87218.0,4.902e-05]
[1766576368664,0.01148,87224.0,87218.0,0.01151454]
[1766576368884,0.010931,87224.0,87218.0,0.01151454]
[1766576369383,0.010931,87224.0,87219.0,0.01146539]
[1766576369621,0.010931,87224.0,87220.0,0.01146526]
[1766576370030,0.010931,87224.0,87219.0,0.06879227]
[1766576370841,0.010931,87224.0,87220.0,0.01146526]
[1766576372051,0.010931,87224.0,87219.0,0.01146539]
[1766576372653,0.010931,87224.0,87218.0,0.06884095]
[1766576372856,0.010931,87224.0,87218.0,4.902e-05]
[1766576373073,0.02239573,87224.0,87218.0,4.902e-05]
[1766576373267,0.010931,87224.0,87218.0,4.902e-05]
[1766576373627,0.010931,87224.0,87218.0,0.06884171]
[1766576373848,0.010931,87224.0,87220.0,0.01146526]
[1766576374051,0.010931,87224.0,87220.0,0.06879135]
[1766576374413,0.010931,87224.0,87221.0,0.01146512]
[1766576374657,0.010931,87224.0,87220.0,0.0687915]
[1766576374835,0.010931,87224.0,87221.0,0.01146512]
[1766576375245,0.010931,87224.0,87220.0,0.0687915]
[1766576375443,0.010931,87224.0,87221.0,0.01146512]
[1766576375853,0.010931,87224.0,87220.0,0.01146526]
[1766576376053,0.010931,87224.0,87218.0,0.01151454]
[1766576376284,0.010931,87224.0,87218.0,0.06884201]
[1766576376451,0.010931,87224.0,87218.0,0.01151454]
[1766576376651,0.010931,87224.0,87219.0,0.01146539]
[1766576377641,0.010931,87224.0,87220.0,0.01146526]
[1766576378414,0.010931,87224.0,87221.0,0.01146512]
[1766576378761,0.010931,87224.0,87221.0,0.06879055]
[1766576378964,0.010931,87224.0,87221.0,0.01146512]
[1766576380051,0.010931,87224.0,87221.0,0.06879064]
[1766576380216,0.010931,87224.0,87223.0,0.05732432]
[1766576380597,0.03441556,87234.0,87226.0,0.01146447]
[1766576380838,0.06877428,87242.0,87234.0,0.00055]
[1766576381042,0.0114625,87241.0,87234.0,0.00055]
[1766576381215,0.0114625,87241.0,87231.0,0.06878163]
[1766576381216,0.01146263,87240.0,87231.0,0.06878163]
[1766576381421,0.06877586,87240.0,87231.0,0.06878163]
[1766576381622,0.01146276,87239.0,87231.0,0.01146381]
[1766576381829,0.08025588,87240.0,87231.0,0.06878282]
[1766576382029,0.02294263,87240.0,87232.0,0.01146368]
[1766576382230,0.01148,87240.0,87232.0,0.06878185]
[1766576382433,0.01148,87240.0,87232.0,0.01146368]
[1766576382668,0.01146276,87239.0,87231.0,0.06878282]
[1766576382838,0.08025594,87240.0,87231.0,0.01146381]
[1766576383041,0.05731381,87239.0,87231.0,0.00019639]
[1766576383329,0.01146276,87239.0,87231.0,0.0116602]
[1766576383965,0.02294263,87240.0,87232.0,0.01146368]
[1766576384148,0.08025582,87240.0,87231.0,0.06897914]
[1766576384724,0.01146276,87239.0,87231.0,0.0116602]
[1766576385122,0.01146289,87238.0,87231.0,0.00019639]
[1766576385949,0.06877751,87238.0,87231.0,0.00019639]
[1766576386619,0.01146302,87237.0,87231.0,0.00019639]
[1766576387143,0.06877751,87238.0,87231.0,0.00019639]
[1766576387343,0.01146302,87237.0,87231.0,0.00019639]
[1766576388105,0.06877908,87236.0,87231.0,0.00019639]
[1766576388681,0.01146289,87238.0,87231.0,0.00019639]
[1766576388882,0.01146302,87237.0,87231.0,0.00019639]
[1766576389207,0.01146315,87236.0,87231.0,0.00019639]
[1766576389406,0.06877828,87237.0,87231.0,0.00019639]
[1766576390149,0.01146315,87236.0,87228.0,0.08026502]
[1766576390691,0.06877828,87237.0,87229.0,0.01146407]
[1766576391339,0.01146276,87239.0,87230.0,0.01146394]
[1766576391639,0.06877776,87238.0,87229.0,0.01146407]
[1766576391816,0.06877776,87238.0,87230.0,0.01146394]
[1766576392019,0.06877776,87238.0,87229.0,0.01146407]
[1766576392516,0.06879381,87240.0,87232.0,0.01146368]
[1766576392517,0.01148,87240.0,87232.0,0.01146368]
[1766576392697,0.01148,87240.0,87231.0,0.01146381]
[1766576392892,0.06877711,87239.0,87230.0,0.06878364]
[1766576393133,0.01146289,87238.0,87230.0,0.06878364]
[1766576393338,0.06877711,87239.0,87230.0,0.06878364]
[1766576394065,0.01146289,87238.0,87230.0,0.06878364]
[1766576394585,0.06877711,87239.0,87230.0,0.06878364]
[1766576394791,0.01146289,87238.0,87230.0,0.01146394]
[1766576395030,0.01146289,87238.0,87230.0,0.06878324]
[1766576395230,0.01146289,87238.0,87230.0,0.01146394]
[1766576396418,0.06877757,87238.0,87229.0,0.01146407]
[1766576396622,0.06877757,87238.0,87229.0,0.0687844]
[1766576396821,0.01146289,87238.0,87229.0,0.0687844]
[1766576397022,0.01146302,87237.0,87229.0,0.0687844]
[1766576397721,0.01146289,87238.0,87229.0,0.0687844]
[1766576398139,0.06877711,87239.0,87231.0,0.01146381]
[1766576398320,0.06877711,87239.0,87230.0,0.06878353]
[1766576398321,0.06877759,87238.0,87230.0,0.01146394]
[1766576398722,0.01146302,87237.0,87229.0,0.01146407]
[1766576398953,0.06877821,87237.0,87229.0,0.01146407]
[1766576399164,0.01146302,87237.0,87229.0,0.01146407]
[1766576399508,0.06877759,87238.0,87229.0,0.06878444]
[1766576399730,0.0687784,87237.0,87229.0,0.01146407]
[1766576400109,0.01146302,87237.0,87229.0,0.01146407]
[1766576400602,0.06877946,87236.0,87228.0,0.01148]
[1766576400801,0.01146328,87235.0,87228.0,0.01148]
[1766576401080,0.06878022,87235.0,87228.0,0.01148]
[1766576401283,0.06877983,87235.0,87228.0,0.01148]
[1766576401514,0.01146342,87234.0,87228.0,0.01148]
[1766576402230,0.01146315,87236.0,87228.0,0.0229442]
[1766576402435,0.01146328,87235.0,87228.0,0.01148]
[1766576402936,0.06877911,87236.0,87226.0,0.0687868]
[1766576403151,0.01146315,87236.0,87228.0,0.0114642]
[1766576403839,0.06877894,87236.0,87228.0,0.0114642]
[1766576405212,0.01146302,87237.0,87229.0,0.01146407]
[1766576405542,0.068779,87236.0,87228.0,0.0114642]
[1766576405882,0.01146315,87236.0,87228.0,0.0114642]
[1766576406377,0.01146328,87235.0,87227.0,0.01146434]
[1766576406608,0.06877839,87237.0,87228.0,0.0114642]
[1766576407918,0.06877928,87236.0,87227.0,0.01146434]
[1766576408352,0.06877899,87236.0,87227.0,0.01146434]
[1766576408528,0.06877899,87236.0,87228.0,0.0114642]
[1766576408742,0.01146315,87236.0,87227.0,0.06878562]
[1766576408935,0.01146315,87236.0,87228.0,0.0114642]
[1766576409134,0.06878108,87234.0,87225.0,0.0114646]
[1766576409368,0.06878064,87234.0,87225.0,0.0114646]
[1766576409569,0.01146342,87234.0,87226.0,0.06878682]
[1766576409772,0.01146342,87234.0,87226.0,0.01146447]
[1766576410315,0.01146342,87234.0,87225.0,0.06878745]
[1766576410538,0.01146342,87234.0,87226.0,0.01146447]
[1766576410962,0.01146342,87234.0,87226.0,0.06878678]
[1766576411139,0.06877974,87235.0,87226.0,0.06878678]
[1766576411556,0.06877974,87235.0,87227.0,0.01146434]
[1766576412560,0.01146315,87236.0,87228.0,0.0114642]
[1766576413219,0.01146328,87235.0,87226.0,0.06878678]
[1766576413441,0.01146342,87234.0,87226.0,0.06878678]
[1766576414685,0.01146328,87235.0,87226.0,0.01146447]
[1766576415704,0.0687783,87237.0,87228.0,0.0114642]
[1766576416525,0.06878014,87235.0,87225.0,0.0114646]
[1766576416655,0.06878014,87235.0,87227.0,0.01146434]
[1766576416869,0.06878014,87235.0,87226.0,0.01146447]
[1766576417619,0.01146342,87234.0,87226.0,0.06878629]
[1766576417962,0.06878014,87235.0,87226.0,0.06878629]
[1766576418129,0.01146342,87234.0,87226.0,0.01146447]
[1766576418357,0.01146355,87233.0,87224.0,0.06878833]
[1766576418555,0.06878053,87234.0,87225.0,0.06878751]
[1766576418720,0.06878053,87234.0,87226.0,0.01146447]
[1766576419357,0.01146328,87235.0,87227.0,0.06878594]
[1766576420562,0.06877858,87238.0,87229.0,0.01146407]
[1766576420725,0.01146315,87236.0,87228.0,0.06878512]
[1766576421126,0.01146328,87235.0,87228.0,0.01148]
[1766576421521,0.01146315,87236.0,87228.0,0.0229442]
[1766576421952,0.01146315,87236.0,87228.0,0.01148]
[1766576422187,0.01146315,87236.0,87228.0,0.0229442]
[1766576422566,0.06877911,87236.0,87228.0,0.0229442]
[1766576422772,0.01146328,87235.0,87228.0,0.01148]
[1766576423005,0.06877911,87236.0,87228.0,0.0229442]
[1766576423413,0.01146315,87236.0,87228.0,0.08026507]
[1766576423615,0.06877897,87236.0,87228.0,0.0229442]
[1766576423830,0.01146315,87236.0,87228.0,0.0229442]
[1766576424254,0.01146328,87235.0,87228.0,0.01148]
[1766576424619,0.01146342,87234.0,87228.0,0.01148]
[1766576424982,0.01146328,87235.0,87228.0,0.01148]
[1766576425182,0.06877987,87235.0,87228.0,0.01148]
[1766576427814,0.06878052,87234.0,87228.0,0.01148]
[1766576428033,0.01146342,87234.0,87228.0,0.01148]
[1766576430123,0.01146342,87234.0,87227.0,0.01148]
[1766576430883,0.06877984,87235.0,87227.0,0.02294434]
[1766576431323,0.06877984,87235.0,87227.0,0.01148]
[1766576431872,0.06877984,87235.0,87227.0,0.02294434]
[1766576432154,0.06877984,87235.0,87227.0,0.01148]
[1766576432659,0.06877984,87235.0,87227.0,0.02294434]
[1766576433458,0.01146342,87234.0,87227.0,0.01148]
[1766576433885,0.06878099,87234.0,87227.0,0.01148]
[1766576437566,0.01146342,87234.0,87227.0,0.01148]
[1766576437747,0.06878083,87235.0,87227.0,0.02294434]
[1766576438961,0.01146342,87234.0,87226.0,0.02294447]
[1766576439161,0.01146355,87233.0,87226.0,0.01148]
[1766576439622,0.06878072,87234.0,87226.0,0.02294447]
[1766576439842,0.01146342,87234.0,87226.0,0.0802668]
[1766576440226,0.06877822,87237.0,87228.0,0.05732104]
[1766576440432,0.01146328,87235.0,87227.0,0.01146434]
[1766576440777,0.06877978,87235.0,87226.0,0.02294447]
[1766576441190,0.06877978,87235.0,87226.0,0.08026678]
[1766576441894,0.06877978,87235.0,87227.0,0.01146434]
[1766576443474,0.06877978,87235.0,87226.0,0.08026678]
[1766576443616,0.01146342,87234.0,87226.0,0.02294447]
[1766576444016,0.01146342,87234.0,87226.0,0.0802668]
[1766576444906,0.01146342,87234.0,87226.0,0.02294447]
[1766576445112,0.06878108,87234.0,87226.0,0.02294447]
[1766576446898,0.01146342,87234.0,87226.0,0.08026679]
[1766576447419,0.06878054,87234.0,87226.0,0.02294447]
[1766576447850,0.01146342,87234.0,87226.0,0.08026682]
[1766576448129,0.06877978,87235.0,87227.0,0.01146434]
[1766576448382,0.01146342,87234.0,87226.0,0.08026682]
[1766576448558,0.06877978,87235.0,87226.0,0.08026682]
[1766576449122,0.01146342,87234.0,87226.0,0.02294447]
[1766576449531,0.01146342,87234.0,87226.0,0.01148]
[1766576449983,0.01146342,87234.0,87226.0,0.08026678]
[1766576450643,0.06877978,87235.0,87226.0,0.08026678]
[1766576450855,0.01146342,87234.0,87226.0,0.08026678]
[1766576451231,0.06877978,87235.0,87226.0,0.08026678]
[1766576451392,0.01146342,87234.0,87226.0,0.02294447]
[1766576451761,0.01146355,87233.0,87226.0,0.01148]
[1766576453962,0.06878075,87234.0,87226.0,0.01148]
[1766576454341,0.06878164,87233.0,87226.0,0.01148]
[1766576455164,0.01146355,87233.0,87226.0,0.01148]
[1766576456238,0.06878075,87234.0,87226.0,0.01148]
[1766576456585,0.06878075,87234.0,87226.0,0.02294447]
[1766576457345,0.06878075,87234.0,87226.0,0.01148]
[1766576457531,0.01146355,87233.0,87226.0,0.01148]
[1766576457736,0.06878075,87234.0,87226.0,0.01148]
[1766576458357,0.06878075,87234.0,87226.0,0.02294447]
[1766576458795,0.06878075,87234.0,87226.0,0.01148]
[1766576459472,0.06878075,87234.0,87226.0,0.02294447]
[1766576461513,0.01146355,87233.0,87226.0,0.01148]
[1766576461862,0.06877975,87235.0,87226.0,0.06880212]
[1766576461994,0.01146276,87239.0,87233.0,0.00055]
[1766576462198,0.01146276,87239.0,87229.0,0.01146407]
[1766576462199,2e-08,87238.0,87236.0,0.05731523]
[1766576462470,0.01148,87244.0,87239.0,0.01146276]
[1766576462586,0.01148,87244.0,87240.0,0.01146263]
[1766576462791,0.01148,87244.0,87239.0,0.01146276]
[1766576463054,0.01148,87244.0,87237.0,0.1822269]
[1766576463319,0.06877346,87243.0,87237.0,0.11345]
[1766576463491,0.01146263,87240.0,87232.0,0.03440747]
[1766576463907,0.0687771,87239.0,87232.0,0.03440747]
[1766576464689,0.01146276,87239.0,87232.0,0.03440747]
[1766576465881,0.01146263,87240.0,87232.0,0.04587115]
[1766576466283,0.01146276,87239.0,87231.0,0.12491381]
[1766576466424,0.06877591,87240.0,87233.0,0.03440747]
[1766576467042,0.01146276,87239.0,87233.0,0.03440747]
[1766576468491,0.06877591,87240.0,87233.0,0.03440747]
[1766576469707,0.06877504,87241.0,87233.0,0.04587102]
[1766576470634,0.01146263,87240.0,87233.0,0.03440747]
[1766576471270,0.06877421,87242.0,87233.0,0.04587102]
[1766576471471,0.06877421,87242.0,87233.0,0.03440747]
[1766576472310,0.06877817,87237.0,87233.0,0.03440747]
[1766576472530,0.01146302,87237.0,87233.0,0.03440747]
[1766576472746,0.06877826,87237.0,87233.0,0.03440747]
[1766576472962,0.06877918,87236.0,87233.0,0.03440747]
[1766576473189,0.05731644,87235.0,87233.0,0.03440747]
[1766576473396,0.0573171,87234.0,87233.0,0.03440747]
[1766576473592,0.05731841,87232.0,87231.0,0.11345]
[1766576473799,0.05194494,87232.0,87231.0,0.11345]
[1766576474125,0.04298894,87232.0,87231.0,0.14785747]
[1766576474322,0.04298894,87232.0,87231.0,0.11345]
[1766576477169,0.01146381,87231.0,87229.0,0.01148]
[1766576477380,0.05731972,87230.0,87229.0,0.01148]
[1766576478096,0.06878302,87231.0,87229.0,0.01148]
[1766576478324,0.01146381,87231.0,87229.0,0.01148]
[1766576478591,0.06878298,87231.0,87229.0,0.01148]
[1766576478763,0.05731972,87230.0,87229.0,0.01148]
[1766576484250,0.068787,87226.0,87219.0,0.11345]
[1766576484451,0.01146407,87229.0,87220.0,0.12493]
[1766576484651,0.06878503,87229.0,87226.0,0.00055]
[1766576484971,0.10319359,87229.0,87220.0,0.13639526]
[1766576485109,0.10319376,87229.0,87220.0,0.13639526]
[1766576485319,0.10319376,87229.0,87220.0,0.12493]
[1766576485526,0.03440874,87229.0,87221.0,0.01146512]
[1766576485729,0.06878342,87231.0,87222.0,0.01146499]
[1766576485947,0.06878176,87233.0,87223.0,0.01146486]
[1766576486182,0.10319365,87233.0,87225.0,0.0114646]
[1766576486382,0.06878176,87233.0,87225.0,0.0114646]
[1766576486684,0.06878213,87232.0,87223.0,0.01146486]
[1766576487000,0.06878213,87232.0,87224.0,0.01148]
[1766576487204,0.01146394,87230.0,87224.0,0.01148]
[1766576488024,0.01146407,87229.0,87224.0,0.01148]
[1766576488682,0.06878406,87230.0,87224.0,0.01148]
[1766576488886,0.01146407,87229.0,87224.0,0.01148]
[1766576489996,0.06878467,87229.0,87224.0,0.01148]
[1766576491222,0.06878544,87228.0,87224.0,0.01148]
[1766576492696,0.0114642,87228.0,87224.0,0.01148]
[1766576492897,0.06878467,87229.0,87224.0,0.01148]
[1766576493266,0.0114642,87228.0,87224.0,0.01148]
[1766576493503,0.06878467,87229.0,87224.0,0.01148]
[1766576493705,0.0114642,87228.0,87224.0,0.01148]
[1766576494023,0.06878604,87227.0,87224.0,0.01148]
[1766576494423,0.05732301,87225.0,87224.0,0.01148]
[1766576494623,0.05732674,87220.0,87218.0,4.902e-05]
[1766576494772,0.06879008,87222.0,87219.0,0.01148]
[1766576495412,0.01146499,87222.0,87219.0,0.01148]
[1766576496125,0.05732695,87219.0,87218.0,4.902e-05]
[1766576496298,0.05732689,87220.0,87218.0,4.902e-05]
[1766576496515,0.06878925,87223.0,87218.0,4.902e-05]
[1766576496712,0.01146473,87224.0,87218.0,4.902e-05]
[1766576496713,0.01148,87227.0,87218.0,4.902e-05]
[1766576496889,0.02294394,87230.0,87227.0,0.00055]
[1766576497073,0.03441284,87229.0,87227.0,0.00055]
[1766576497277,0.03441284,87229.0,87223.0,0.06933755]
[1766576497278,0.03441284,87229.0,87224.0,0.06878816]
[1766576497497,0.01148,87234.0,87228.0,0.0114642]
[1766576497697,0.03441138,87232.0,87228.0,0.0114642]
[1766576497900,0.02171598,87232.0,87229.0,0.01146407]
[1766576498116,0.01148,87234.0,87231.0,0.01146381]
[1766576498339,0.01146355,87233.0,87226.0,0.01148]
[1766576498566,0.000549,87231.0,87226.0,0.02294447]
[1766576498743,0.000549,87231.0,87226.0,0.01148]
[1766576498942,0.01146368,87232.0,87226.0,0.01148]
[1766576499304,0.06877947,87236.0,87226.0,0.08026626]
[1766576499532,0.01148,87235.0,87227.0,0.01146434]
[1766576499692,0.01148,87235.0,87229.0,0.01146407]
[1766576499892,0.02294289,87238.0,87230.0,0.01146394]
[1766576500089,0.01148,87237.0,87230.0,0.0687836]
[1766576500328,0.01148,87237.0,87231.0,0.01146381]
[1766576500489,0.01148,87237.0,87229.0,0.06878402]
[1766576501099,0.01148,87237.0,87229.0,0.01146407]
[1766576501352,0.02294302,87237.0,87229.0,0.01146407]
[1766576501911,0.01146315,87236.0,87228.0,0.06878522]
[1766576502258,0.02294302,87237.0,87229.0,0.01146407]
[1766576502477,0.01148,87237.0,87229.0,0.01146407]
[1766576503358,0.01146315,87236.0,87228.0,0.06878522]
[1766576503782,0.01146342,87234.0,87226.0,0.01148]
[1766576504404,0.01146355,87233.0,87226.0,0.01148]
[1766576505206,0.01146342,87234.0,87226.0,0.01148]
[1766576505562,0.05731775,87233.0,87226.0,0.01148]
[1766576506019,0.06878223,87232.0,87226.0,0.01148]
[1766576506220,0.01146355,87233.0,87226.0,0.01148]
[1766576506377,0.05731882,87232.0,87226.0,0.01148]
[1766576506585,0.0687825,87232.0,87226.0,0.01148]
[1766576506780,0.01146368,87232.0,87226.0,0.01148]
[1766576507009,0.01146355,87233.0,87226.0,0.01148]
[1766576509065,0.06878209,87232.0,87226.0,0.01148]
[1766576509399,0.01146381,87231.0,87226.0,0.01148]
[1766576509896,0.06878209,87232.0,87226.0,0.01148]
[1766576510073,0.37600879,87240.0,87232.0,0.00055]
[1766576510254,0.45836773,87267.0,87232.0,0.00055]
[1766576510255,0.05731246,87242.0,87232.0,0.00055]
[1766576510466,0.06877512,87241.0,87232.0,0.00055]
[1766576510801,0.01146263,87240.0,87232.0,0.01146368]
[1766576511979,0.06877512,87241.0,87233.0,0.01146355]
[1766576512185,0.01146236,87242.0,87234.0,0.01146342]
[1766576512387,0.0114621,87244.0,87235.0,0.01146328]
[1766576512548,0.01146223,87243.0,87235.0,0.01146328]
[1766576512750,0.01146368,87241.0,87235.0,0.01146328]
[1766576514616,0.01146368,87241.0,87234.0,0.06878005]
[1766576514813,0.01146368,87241.0,87237.0,0.01146302]
[1766576515045,0.00011,87248.0,87240.0,0.01146263]
[1766576515366,0.03440759,87245.0,87240.0,0.06877578]
[1766576515574,0.00011,87248.0,87240.0,0.06877578]
[1766576515857,0.00011,87248.0,87241.0,0.0114625]
[1766576516060,0.00011,87248.0,87245.0,0.01146197]
[1766576516267,0.00011,87248.0,87245.0,0.06877163]
[1766576516491,0.00011,87248.0,87246.0,0.05730869]
[1766576516647,0.00011,87268.0,87246.0,0.05730869]
[1766576516648,0.01156895,87268.0,87258.0,0.06876144]
[1766576516824,0.000549,87258.0,87255.0,0.01146066]
[1766576517027,0.000549,87258.0,87254.0,0.01146079]
[1766576517229,0.000549,87258.0,87252.0,0.01146105]
[1766576517433,0.06875863,87262.0,87253.0,0.01146092]
[1766576518037,0.06875907,87262.0,87252.0,0.01146105]
[1766576518363,0.01146,87260.0,87251.0,0.06876655]
[1766576518538,0.01146013,87259.0,87251.0,0.01146118]
[1766576518744,0.01146,87260.0,87250.0,0.06876781]
[1766576518745,0.06876014,87260.0,87250.0,0.06876781]
[1766576518943,0.06876099,87259.0,87251.0,0.01148]
[1766576519164,0.06876161,87258.0,87251.0,0.01148]
[1766576519381,0.01146039,87257.0,87251.0,0.01148]
[1766576519739,0.01146039,87257.0,87251.0,0.010931]
[1766576519909,0.01146026,87258.0,87247.0,0.06876981]
[1766576520116,0.01146026,87258.0,87250.0,0.01148]
[1766576520325,0.06876141,87259.0,87250.0,0.02294131]
[1766576520527,0.05729981,87261.0,87250.0,0.02294131]
[1766576520528,0.01146,87260.0,87251.0,0.01146118]
[1766576520734,0.01146026,87258.0,87250.0,0.01148]
[1766576521571,0.01146013,87259.0,87250.0,0.02294131]
[1766576521924,0.01146026,87258.0,87250.0,0.01148]
[1766576522296,0.01146092,87253.0,87250.0,0.01148]
[1766576522500,0.01146039,87257.0,87250.0,0.01148]
[1766576522501,0.01146039,87257.0,87250.0,0.01093]
[1766576522715,0.01146052,87256.0,87250.0,0.01093]
[1766576522924,0.01146039,87257.0,87250.0,0.01093]
[1766576523300,0.06876215,87258.0,87250.0,0.01093]
[1766576523462,0.01146039,87257.0,87250.0,0.01093]
[1766576524683,0.01146039,87257.0,87249.0,0.01148]
[1766576524972,0.01146079,87254.0,87249.0,0.01148]
[1766576525122,0.01146066,87255.0,87249.0,0.01148]
[1766576525509,0.0687638,87256.0,87249.0,0.01148]
[1766576526538,0.01146066,87255.0,87249.0,0.01148]
[1766576526938,0.01146079,87254.0,87249.0,0.01148]
[1766576527294,0.06876421,87255.0,87249.0,0.01148]
[1766576527434,0.01146066,87255.0,87249.0,0.01148]
[1766576527636,0.0687638,87256.0,87249.0,0.01148]
[1766576528075,0.01146066,87255.0,87249.0,0.01148]
[1766576528390,0.01146079,87254.0,87249.0,0.01148]
[1766576528612,0.01146039,87257.0,87254.0,0.000549]
[1766576528799,0.01146066,87255.0,87249.0,0.01148]
[1766576529642,0.01146092,87253.0,87249.0,0.01148]
[1766576529764,0.06876558,87253.0,87249.0,0.01148]
[1766576529962,0.01146092,87253.0,87249.0,0.01148]
[1766576531424,0.01146,87260.0,87250.0,0.11518]
[1766576531671,0.01146013,87259.0,87253.0,0.000549]
[1766576531845,0.01146,87260.0,87251.0,0.01146118]
[1766576532144,0.1307096,87261.0,87251.0,0.01146118]
[1766576532341,0.08024011,87260.0,87251.0,0.01146118]
[1766576532558,0.08024011,87260.0,87250.0,0.18394769]
[1766576532776,0.08024011,87260.0,87251.0,0.01146118]
[1766576534031,0.0573007,87259.0,87250.0,0.12664131]
[1766576534239,0.01146039,87257.0,87250.0,0.11518]
[1766576536554,0.01146026,87258.0,87250.0,0.11518]
[1766576537004,0.01146039,87257.0,87250.0,0.11518]
[1766576537221,0.01146052,87256.0,87250.0,0.11518]
[1766576537804,0.01146092,87253.0,87250.0,0.11518]
[1766576538112,0.01146079,87254.0,87250.0,0.11518]
[1766576540294,0.06876632,87252.0,87248.0,0.01148]
[1766576540511,4.898e-05,87252.0,87248.0,0.01148]
[1766576541461,0.01151003,87252.0,87248.0,0.01148]
[1766576541665,4.898e-05,87252.0,87248.0,0.01148]
[1766576543315,0.01146668,87252.0,87248.0,0.01148]
[1766576543514,5.63e-06,87252.0,87248.0,0.01148]
[1766576543893,0.0687721,87252.0,87248.0,0.01148]
[1766576544094,0.01146668,87252.0,87248.0,0.01148]
[1766576545023,5.63e-06,87252.0,87248.0,0.01148]
[1766576550511,5.63e-06,87252.0,87248.0,0.02294158]
[1766576551532,5.63e-06,87252.0,87248.0,0.08024941]
[1766576552042,5.63e-06,87252.0,87248.0,0.01148]
[1766576555495,5.63e-06,87252.0,87248.0,0.02294158]
[1766576556258,5.63e-06,87252.0,87248.0,0.08024937]
[1766576556673,5.63e-06,87252.0,87248.0,0.02294158]
[1766576557298,5.63e-06,87252.0,87248.0,0.01148]
[1766576561986,5.63e-06,87252.0,87248.0,0.02294158]
[1766576562312,5.63e-06,87252.0,87248.0,0.01148]
[1766576562793,5.63e-06,87252.0,87248.0,0.02294158]
[1766576563448,5.63e-06,87252.0,87248.0,0.01148]
[1766576566559,5.63e-06,87252.0,87248.0,0.02294158]
[1766576566759,5.63e-06,87252.0,87248.0,0.08024947]
[1766576566917,5.63e-06,87252.0,87249.0,0.01146144]
[1766576567119,5.63e-06,87252.0,87248.0,0.08024947]
[1766576567334,5.63e-06,87252.0,87248.0,0.02294158]
[1766576567531,5.63e-06,87252.0,87248.0,0.01148]
[1766576567754,5.63e-06,87252.0,87248.0,0.02294158]
[1766576567957,0.01146118,87251.0,87245.0,0.01148]
[1766576568207,0.01146668,87252.0,87245.0,0.01148]
[1766576568427,5.63e-06,87252.0,87246.0,0.01146184]
[1766576568858,5.63e-06,87252.0,87246.0,0.06877094]
[1766576568992,0.01146668,87252.0,87245.0,0.01148]
[1766576569192,0.06877214,87252.0,87245.0,0.01148]
[1766576569414,0.01146118,87251.0,87245.0,0.01148]
[1766576569621,5.63e-06,87252.0,87245.0,0.02294197]
[1766576569816,0.01146668,87252.0,87245.0,0.01148]
[1766576571039,0.05731041,87245.0,87234.0,0.01146342]
[1766576571241,0.01146236,87242.0,87228.0,0.0114642]
[1766576571439,0.05731741,87234.0,87226.0,0.04584]
[1766576571617,0.06878265,87232.0,87225.0,0.03440574]
[1766576571825,0.01146368,87232.0,87225.0,0.04588574]
[1766576572028,0.01146355,87233.0,87225.0,0.04588574]
[1766576572249,0.01146368,87232.0,87225.0,0.01148]
[1766576572454,0.01146355,87233.0,87225.0,0.01148]
[1766576572674,0.03095871,87266.0,87235.0,0.01146328]
[1766576572675,0.06877243,87245.0,87235.0,0.01146328]
[1766576572883,0.36446971,87250.0,87236.0,0.06877878]
[1766576572884,0.01148,87244.0,87236.0,0.06877878]
[1766576573108,0.01148,87243.0,87237.0,0.01146302]
[1766576574077,0.01148,87243.0,87239.0,0.01146276]
[1766576574279,0.010931,87243.0,87240.0,0.01146263]
[1766576574493,0.010931,87243.0,87239.0,0.06877645]
[1766576575104,0.06876929,87249.0,87240.0,0.01146263]
[1766576575305,0.01146144,87249.0,87240.0,0.06877558]
[1766576575501,0.01146158,87248.0,87240.0,0.01146263]
[1766576575924,0.06876875,87249.0,87240.0,0.01146263]
[1766576575925,0.43323889,87250.0,87241.0,0.0114625]
[1766576576129,0.43323889,87250.0,87242.0,0.01146236]
[1766576576356,0.01148,87251.0,87242.0,0.06877414]
[1766576576357,0.02294118,87251.0,87242.0,0.06877414]